[Event "*** Titled Tuesday Blitz"]
[Site "Chess.com"]
[Date "2018.12.04"]
[Round "3"]
[White "JSMastropiero"]
[Black "realcontender"]
[Result "1/2-1/2"]
[WhiteElo "2170"]
[BlackElo "2118"]
[TimeControl "180+2"]
[EndTime "13:37:51 PST"]
[Termination "Game drawn by repetition"]

1. e4 {[%clk 0:02:56.4]} 1... c5 {[%clk 0:03:00.1]} 2. Nc3 {[%clk 0:02:55.4]}
2... d6 {[%clk 0:03:00]} 3. Nge2 {[%clk 0:02:54]} 3... g6 {[%clk 0:02:56.4]} 4.
d4 {[%clk 0:02:54.7]} 4... cxd4 {[%clk 0:02:57.4]} 5. Nxd4 {[%clk 0:02:55.4]}
5... Bg7 {[%clk 0:02:57.9]} 6. g3 {[%clk 0:02:53.1]} 6... Nf6 {[%clk 0:02:52.3]}
7. Bg2 {[%clk 0:02:51.8]} 7... O-O {[%clk 0:02:50.9]} 8. O-O {[%clk 0:02:52.3]}
8... Bg4 {[%clk 0:02:39.9]} 9. f3 {[%clk 0:02:49.8]} 9... Bd7 {[%clk 0:02:39.5]}
10. Be3 {[%clk 0:02:47.8]} 10... Nc6 {[%clk 0:02:40.5]} 11. Nde2 {[%clk
0:02:47.4]} 11... Ne5 {[%clk 0:02:30.2]} 12. b3 {[%clk 0:02:45.4]} 12... Rc8
{[%clk 0:02:18]} 13. Qd2 {[%clk 0:02:44.1]} 13... b6 {[%clk 0:02:14.8]} 14. Nd5
{[%clk 0:02:21.1]} 14... Nxd5 {[%clk 0:01:59.5]} 15. exd5 {[%clk 0:02:21.5]}
15... a6 {[%clk 0:01:46.5]} 16. h3 {[%clk 0:02:14.1]} 16... f5 {[%clk 0:01:35]}
17. f4 {[%clk 0:02:12.3]} 17... Nf7 {[%clk 0:01:36]} 18. Bd4 {[%clk 0:02:13]}
18... b5 {[%clk 0:01:31.1]} 19. Bxg7 {[%clk 0:02:08.3]} 19... Kxg7 {[%clk
0:01:33]} 20. Nd4 {[%clk 0:02:01]} 20... Qb6 {[%clk 0:01:32.2]} 21. Kh2 {[%clk
0:01:57.5]} 21... Nh6 {[%clk 0:00:51.3]} 22. Rfe1 {[%clk 0:01:54.9]} 22... Ng8
{[%clk 0:00:51.9]} 23. Nc6 {[%clk 0:01:17.6]} 23... Bxc6 {[%clk 0:00:30.3]} 24.
dxc6 {[%clk 0:01:16.6]} 24... Rc7 {[%clk 0:00:31.3]} 25. Rac1 {[%clk 0:01:11.2]}
25... Nf6 {[%clk 0:00:32.2]} 26. c4 {[%clk 0:01:07.6]} 26... b4 {[%clk 0:00:33]}
27. Re6 {[%clk 0:01:03.9]} 27... Qc5 {[%clk 0:00:31.2]} 28. Rce1 {[%clk
0:01:03]} 28... Kf7 {[%clk 0:00:30.5]} 29. Bf3 {[%clk 0:00:47.2]} 29... a5
{[%clk 0:00:30.7]} 30. Bd5 {[%clk 0:00:44.2]} 30... Nxd5 {[%clk 0:00:30.7]} 31.
cxd5 {[%clk 0:00:44.8]} 31... a4 {[%clk 0:00:27.2]} 32. bxa4 {[%clk 0:00:43.1]}
32... Ra8 {[%clk 0:00:27.7]} 33. Qe2 {[%clk 0:00:30.7]} 33... Raa7 {[%clk
0:00:28]} 34. Qd3 {[%clk 0:00:28.3]} 34... Rxa4 {[%clk 0:00:27.8]} 35. R1e2
{[%clk 0:00:29.1]} 35... Ra5 {[%clk 0:00:25.7]} 36. Rd2 {[%clk 0:00:29.4]} 36...
Qa7 {[%clk 0:00:22.6]} 37. g4 {[%clk 0:00:24]} 37... Rxa2 {[%clk 0:00:20.2]} 38.
gxf5 {[%clk 0:00:23.7]} 38... Rxd2+ {[%clk 0:00:21]} 39. Qxd2 {[%clk 0:00:24.3]}
39... gxf5 {[%clk 0:00:22.3]} 40. Qe2 {[%clk 0:00:24.5]} 40... Qd4 {[%clk
0:00:15.7]} 41. Qh5+ {[%clk 0:00:18.9]} 41... Kf8 {[%clk 0:00:15.7]} 42. Qxf5+
{[%clk 0:00:20]} 42... Ke8 {[%clk 0:00:16.6]} 43. Qxh7 {[%clk 0:00:11.8]} 43...
Qf2+ {[%clk 0:00:17.2]} 44. Kh1 {[%clk 0:00:11.9]} 44... Qf1+ {[%clk 0:00:18.4]}
45. Kh2 {[%clk 0:00:13.3]} 45... Qf2+ {[%clk 0:00:19.8]} 46. Kh1 {[%clk
0:00:14.7]} 46... Qf1+ {[%clk 0:00:18.7]} 47. Kh2 {[%clk 0:00:16.1]} 47... Qf2+
{[%clk 0:00:20.3]} 48. Kh1 {[%clk 0:00:17.2]} 1/2-1/2

[Event "*** Titled Tuesday Blitz"]
[Site "Chess.com"]
[Date "2018.12.04"]
[Round "3"]
[White "GremioPrudente"]
[Black "cool4chess"]
[Result "0-1"]
[WhiteElo "2118"]
[BlackElo "2253"]
[TimeControl "180+2"]
[EndTime "13:37:52 PST"]
[Termination "cool4chess won on time"]

1. Nf3 {[%clk 0:03:01.9]} 1... d5 {[%clk 0:03:00.7]} 2. d4 {[%clk 0:03:02.4]}
2... Nf6 {[%clk 0:03:00.5]} 3. c4 {[%clk 0:03:02.3]} 3... c6 {[%clk 0:03:01.9]}
4. e3 {[%clk 0:03:00.8]} 4... e6 {[%clk 0:03:02.6]} 5. Nbd2 {[%clk 0:03:00.2]}
5... Nbd7 {[%clk 0:03:01.7]} 6. Bd3 {[%clk 0:03:00.7]} 6... Bd6 {[%clk
0:03:02.5]} 7. O-O {[%clk 0:03:01.3]} 7... O-O {[%clk 0:03:03.7]} 8. e4 {[%clk
0:03:02.3]} 8... dxe4 {[%clk 0:03:04.3]} 9. Nxe4 {[%clk 0:03:03]} 9... Nxe4
{[%clk 0:03:05.5]} 10. Bxe4 {[%clk 0:03:04.5]} 10... Nf6 {[%clk 0:03:07.1]} 11.
Bc2 {[%clk 0:03:04.8]} 11... h6 {[%clk 0:03:05.5]} 12. Re1 {[%clk 0:03:00.1]}
12... b6 {[%clk 0:03:05.5]} 13. b3 {[%clk 0:02:58]} 13... Bb7 {[%clk 0:03:06]}
14. Bb2 {[%clk 0:02:58.5]} 14... Qc7 {[%clk 0:03:07.4]} 15. h3 {[%clk 0:02:57]}
15... c5 {[%clk 0:03:08.4]} 16. dxc5 {[%clk 0:02:56.8]} 16... Bxc5 {[%clk
0:03:09]} 17. Bxf6 {[%clk 0:02:55.4]} 17... gxf6 {[%clk 0:03:10.9]} 18. Qe2
{[%clk 0:02:52.3]} 18... Kh8 {[%clk 0:02:48.9]} 19. Be4 {[%clk 0:02:52.6]} 19...
Rg8 {[%clk 0:02:43.5]} 20. Qd2 {[%clk 0:02:38.2]} 20... Bxe4 {[%clk 0:02:34.6]}
21. Rxe4 {[%clk 0:02:35.2]} 21... Rg6 {[%clk 0:02:35]} 22. Rg4 {[%clk
0:02:28.6]} 22... Rxg4 {[%clk 0:02:15.7]} 23. Qxh6+ {[%clk 0:02:27.5]} 23... Kg8
{[%clk 0:02:16.7]} 24. hxg4 {[%clk 0:02:28.4]} 24... Qg3 {[%clk 0:02:16.8]} 25.
Rf1 {[%clk 0:02:15.4]} 25... Qxg4 {[%clk 0:02:16.3]} 26. Qxf6 {[%clk 0:02:14.2]}
26... Bf8 {[%clk 0:01:25.1]} 27. Ng5 {[%clk 0:01:50]} 27... Qh5 {[%clk
0:01:22.8]} 28. Nf3 {[%clk 0:01:37.8]} 28... Bg7 {[%clk 0:01:18.6]} 29. Qg5
{[%clk 0:01:37.7]} 29... Qxg5 {[%clk 0:01:16.3]} 30. Nxg5 {[%clk 0:01:38.2]}
30... Rd8 {[%clk 0:01:17.5]} 31. Rb1 {[%clk 0:01:32.3]} 31... Rd2 {[%clk
0:01:18]} 32. a4 {[%clk 0:01:31.9]} 32... Bd4 {[%clk 0:01:16.5]} 33. Rf1 {[%clk
0:01:19.9]} 33... Rb2 {[%clk 0:01:16.4]} 34. Nf3 {[%clk 0:01:17.2]} 34... Bc5
{[%clk 0:01:17]} 35. Ra1 {[%clk 0:01:09.5]} 35... Rxf2 {[%clk 0:01:03.6]} 36.
Kh2 {[%clk 0:01:08.1]} 36... Rb2 {[%clk 0:01:04.8]} 37. a5 {[%clk 0:01:06.9]}
37... Rxb3 {[%clk 0:01:05.1]} 38. axb6 {[%clk 0:01:08]} 38... axb6 {[%clk
0:01:03.8]} 39. Nd2 {[%clk 0:01:08.5]} 39... Rc3 {[%clk 0:01:02.3]} 40. Ra4
{[%clk 0:01:07.7]} 40... Bd6+ {[%clk 0:01:02.6]} 41. Kg1 {[%clk 0:01:04.1]}
41... Rc1+ {[%clk 0:00:57.7]} 42. Kf2 {[%clk 0:01:01.9]} 42... Bc5+ {[%clk
0:00:58.4]} 43. Ke2 {[%clk 0:01:02.5]} 43... Rg1 {[%clk 0:00:58.4]} 44. Ne4
{[%clk 0:00:56.6]} 44... Rxg2+ {[%clk 0:00:53.6]} 45. Kf3 {[%clk 0:00:56.8]}
45... Rc2 {[%clk 0:00:53.3]} 46. Nxc5 {[%clk 0:00:53]} 46... bxc5 {[%clk
0:00:55.2]} 47. Ke3 {[%clk 0:00:54.3]} 47... Rh2 {[%clk 0:00:45.4]} 48. Ra8+
{[%clk 0:00:49.3]} 48... Kg7 {[%clk 0:00:45.8]} 49. Rc8 {[%clk 0:00:51.2]} 49...
Rh5 {[%clk 0:00:46]} 50. Kf4 {[%clk 0:00:49.9]} 50... Rh4+ {[%clk 0:00:45.8]}
51. Kg3 {[%clk 0:00:49.3]} 51... Rxc4 {[%clk 0:00:47.7]} 0-1

[Event "*** Titled Tuesday Blitz"]
[Site "Chess.com"]
[Date "2018.12.04"]
[Round "3"]
[White "djano"]
[Black "IamSchrodingersCat"]
[Result "1-0"]
[WhiteElo "2375"]
[BlackElo "2437"]
[TimeControl "180+2"]
[EndTime "13:37:53 PST"]
[Termination "djano won by resignation"]

1. c4 {[%clk 0:03:01.9]} 1... g6 {[%clk 0:03:00.2]} 2. Nc3 {[%clk 0:03:02.2]}
2... Bg7 {[%clk 0:03:01.3]} 3. g3 {[%clk 0:03:03.1]} 3... d6 {[%clk 0:03:02.2]}
4. Bg2 {[%clk 0:03:04.4]} 4... Nd7 {[%clk 0:03:03.7]} 5. e4 {[%clk 0:03:05.1]}
5... e5 {[%clk 0:03:04.9]} 6. Nge2 {[%clk 0:03:06.3]} 6... Nh6 {[%clk
0:03:05.8]} 7. O-O {[%clk 0:03:03.2]} 7... O-O {[%clk 0:03:04.7]} 8. f4 {[%clk
0:03:03.8]} 8... f5 {[%clk 0:03:04.3]} 9. d3 {[%clk 0:03:00.1]} 9... c6 {[%clk
0:02:58.9]} 10. Kh1 {[%clk 0:02:59.2]} 10... Qb6 {[%clk 0:02:52]} 11. Na4 {[%clk
0:02:44.7]} 11... Qc7 {[%clk 0:02:42.6]} 12. Be3 {[%clk 0:02:44.4]} 12... Ng4
{[%clk 0:02:33.3]} 13. Bg1 {[%clk 0:02:44.9]} 13... exf4 {[%clk 0:02:23.5]} 14.
Nxf4 {[%clk 0:02:44.4]} 14... Nde5 {[%clk 0:02:07.5]} 15. Rc1 {[%clk 0:02:39.2]}
15... Bd7 {[%clk 0:01:54.4]} 16. d4 {[%clk 0:02:37]} 16... Nf7 {[%clk
0:01:52.8]} 17. c5 {[%clk 0:02:23.1]} 17... fxe4 {[%clk 0:01:48.8]} 18. Bxe4
{[%clk 0:02:13.3]} 18... d5 {[%clk 0:01:47.5]} 19. Bf3 {[%clk 0:02:12.6]} 19...
Nf6 {[%clk 0:01:44]} 20. Nc3 {[%clk 0:02:11.2]} 20... Rae8 {[%clk 0:01:43]} 21.
b4 {[%clk 0:02:05.2]} 21... Ng5 {[%clk 0:01:42]} 22. Bg2 {[%clk 0:02:05.2]}
22... Bg4 {[%clk 0:01:39.3]} 23. Qb3 {[%clk 0:02:03.8]} 23... Nfe4 {[%clk
0:01:36.7]} 24. Ncxd5 {[%clk 0:01:41.5]} 24... Qf7 {[%clk 0:00:27.2]} 25. Ne3
{[%clk 0:01:00]} 25... Qxb3 {[%clk 0:00:27.1]} 26. axb3 {[%clk 0:01:01.4]} 26...
Bd7 {[%clk 0:00:21]} 27. d5 {[%clk 0:01:02.4]} 27... Nd2 {[%clk 0:00:20.3]} 28.
Rfd1 {[%clk 0:00:35.8]} 28... Nxb3 {[%clk 0:00:21]} 29. Rb1 {[%clk 0:00:37.2]}
29... Nd4 {[%clk 0:00:20.1]} 30. Nc4 {[%clk 0:00:32.3]} 30... Ne2 {[%clk
0:00:15.9]} 31. Nd6 {[%clk 0:00:30.1]} 31... Nxf4 {[%clk 0:00:13.2]} 32. gxf4
{[%clk 0:00:29.9]} 32... Rxf4 {[%clk 0:00:11]} 33. Nxe8 {[%clk 0:00:30.4]} 33...
Bxe8 {[%clk 0:00:12.9]} 34. Be3 {[%clk 0:00:25]} 34... Rf5 {[%clk 0:00:11.7]}
35. b5 {[%clk 0:00:22.2]} 35... Nf3 {[%clk 0:00:06.8]} 36. dxc6 {[%clk
0:00:20.5]} 36... bxc6 {[%clk 0:00:06.1]} 37. Rd8 {[%clk 0:00:22.1]} 37... Kf7
{[%clk 0:00:05.3]} 38. b6 {[%clk 0:00:23.2]} 38... axb6 {[%clk 0:00:05.7]} 39.
cxb6 {[%clk 0:00:25.1]} 39... Be5 {[%clk 0:00:06.7]} 40. b7 {[%clk 0:00:22.2]}
40... c5 {[%clk 0:00:07.9]} 41. b8=Q {[%clk 0:00:21.4]} 41... Bxb8 {[%clk
0:00:09.3]} 42. Rdxb8 {[%clk 0:00:23]} 42... Bc6 {[%clk 0:00:10.6]} 43. Rc8
{[%clk 0:00:19.8]} 43... Bd5 {[%clk 0:00:10.9]} 44. Rc7+ {[%clk 0:00:20.7]}
44... Ke6 {[%clk 0:00:09.7]} 45. Rb6+ {[%clk 0:00:21.2]} 45... Ke5 {[%clk
0:00:10.6]} 46. Re7+ {[%clk 0:00:22.4]} 46... Be6 {[%clk 0:00:08.9]} 47. Rexe6+
{[%clk 0:00:22.7]} 47... Kd5 {[%clk 0:00:10.2]} 48. Rf6 {[%clk 0:00:23.2]} 1-0

[Event "*** Titled Tuesday Blitz"]
[Site "Chess.com"]
[Date "2018.12.04"]
[Round "3"]
[White "FearNoEvil12"]
[Black "Karina_Oparina"]
[Result "1-0"]
[WhiteElo "1976"]
[BlackElo "2117"]
[TimeControl "180+2"]
[EndTime "13:37:56 PST"]
[Termination "FearNoEvil12 won by resignation"]

1. e4 {[%clk 0:03:01.9]} 1... c6 {[%clk 0:03:00.6]} 2. d3 {[%clk 0:03:02.2]}
2... d5 {[%clk 0:03:01.4]} 3. Nd2 {[%clk 0:03:03.1]} 3... e5 {[%clk 0:03:02.1]}
4. Ngf3 {[%clk 0:03:02.8]} 4... Bd6 {[%clk 0:03:02.6]} 5. Be2 {[%clk 0:03:03.2]}
5... Nf6 {[%clk 0:03:03]} 6. O-O {[%clk 0:03:04.4]} 6... O-O {[%clk 0:03:03.6]}
7. c3 {[%clk 0:03:02.1]} 7... Nbd7 {[%clk 0:03:02.7]} 8. Qc2 {[%clk 0:03:01.9]}
8... Re8 {[%clk 0:03:03.5]} 9. Re1 {[%clk 0:03:02.1]} 9... Nf8 {[%clk
0:03:04.3]} 10. Bf1 {[%clk 0:03:02.6]} 10... Ng6 {[%clk 0:03:05]} 11. g3 {[%clk
0:03:03.2]} 11... h6 {[%clk 0:03:02.3]} 12. Bg2 {[%clk 0:03:04.5]} 12... Be6
{[%clk 0:03:01.8]} 13. d4 {[%clk 0:03:00.9]} 13... dxe4 {[%clk 0:03:00.3]} 14.
Nxe4 {[%clk 0:02:57.2]} 14... Nxe4 {[%clk 0:03:00.2]} 15. Qxe4 {[%clk
0:02:54.7]} 15... Bd5 {[%clk 0:02:58.5]} 16. Qc2 {[%clk 0:02:50.8]} 16... exd4
{[%clk 0:02:48.4]} 17. Rxe8+ {[%clk 0:02:49.7]} 17... Qxe8 {[%clk 0:02:49.2]}
18. c4 {[%clk 0:02:35.9]} 18... Be4 {[%clk 0:02:38.9]} 19. Qd1 {[%clk
0:02:32.8]} 19... c5 {[%clk 0:02:38.2]} 20. b3 {[%clk 0:02:27.7]} 20... Qc6
{[%clk 0:02:23.8]} 21. Ne1 {[%clk 0:02:24.7]} 21... Re8 {[%clk 0:02:20.6]} 22.
Bxe4 {[%clk 0:02:21.9]} 22... Qxe4 {[%clk 0:02:19.6]} 23. Bd2 {[%clk 0:02:21.4]}
23... Be5 {[%clk 0:02:06.3]} 24. Ng2 {[%clk 0:02:08.6]} 24... Bf6 {[%clk
0:02:00.8]} 25. Bf4 {[%clk 0:01:56.8]} 25... d3 {[%clk 0:01:52.1]} 26. Rb1
{[%clk 0:01:56.2]} 26... Bd4 {[%clk 0:01:51.2]} 27. Be3 {[%clk 0:01:56]} 27...
Bxe3 {[%clk 0:01:33]} 28. Nxe3 {[%clk 0:01:55.1]} 28... Ne5 {[%clk 0:01:33.8]}
29. h4 {[%clk 0:01:52.8]} 29... Nf3+ {[%clk 0:01:32.7]} 30. Kf1 {[%clk
0:01:52.5]} 30... Nd4 {[%clk 0:01:33.3]} 31. Kg1 {[%clk 0:01:50.1]} 31... Ne2+
{[%clk 0:01:23.7]} 32. Kh2 {[%clk 0:01:50]} 32... Nc3 {[%clk 0:01:24.3]} 33. Qe1
{[%clk 0:01:49.8]} 33... Nxb1 {[%clk 0:01:24.7]} 34. Qxb1 {[%clk 0:01:51.3]}
34... d2 {[%clk 0:01:24.4]} 35. Qd1 {[%clk 0:01:51.9]} 35... Rd8 {[%clk
0:01:20.3]} 36. a4 {[%clk 0:01:43.1]} 36... Rd3 {[%clk 0:01:18.5]} 37. Nd5
{[%clk 0:01:24.3]} 37... Rxd5 {[%clk 0:01:12.7]} 38. cxd5 {[%clk 0:01:24]} 38...
Qe1 {[%clk 0:01:12.3]} 39. Qg4 {[%clk 0:01:18.5]} 39... d1=Q {[%clk 0:01:11.5]}
40. Qc8+ {[%clk 0:01:17]} 40... Kh7 {[%clk 0:00:36.9]} 41. Qf5+ {[%clk
0:01:17.8]} 41... Kg8 {[%clk 0:00:36.1]} 42. Qc8+ {[%clk 0:01:18.2]} 42... Qe8
{[%clk 0:00:35.3]} 43. Qxe8+ {[%clk 0:01:18.4]} 43... Kh7 {[%clk 0:00:36.2]} 44.
Qxf7 {[%clk 0:01:18.3]} 44... Qxb3 {[%clk 0:00:34.4]} 45. Qf5+ {[%clk 0:01:16]}
45... Kg8 {[%clk 0:00:33.8]} 46. d6 {[%clk 0:01:15.2]} 46... Qf7 {[%clk
0:00:30.5]} 47. Qc8+ {[%clk 0:00:50.3]} 47... Kh7 {[%clk 0:00:23]} 48. Kg1
{[%clk 0:00:45.2]} 48... c4 {[%clk 0:00:11.9]} 49. d7 {[%clk 0:00:42.2]} 1-0

[Event "*** Titled Tuesday Blitz"]
[Site "Chess.com"]
[Date "2018.12.04"]
[Round "3"]
[White "sergiochess83"]
[Black "grzechu96"]
[Result "1-0"]
[WhiteElo "2764"]
[BlackElo "2523"]
[TimeControl "180+2"]
[EndTime "13:38:05 PST"]
[Termination "sergiochess83 won on time"]

1. e4 {[%clk 0:03:01.9]} 1... e5 {[%clk 0:03:00.8]} 2. Nf3 {[%clk 0:03:02.3]}
2... Nc6 {[%clk 0:03:02.1]} 3. Bb5 {[%clk 0:03:02.7]} 3... a6 {[%clk 0:03:03.2]}
4. Ba4 {[%clk 0:03:03.3]} 4... Nf6 {[%clk 0:03:04.2]} 5. O-O {[%clk 0:03:04.3]}
5... Be7 {[%clk 0:03:05.5]} 6. d3 {[%clk 0:03:04.4]} 6... b5 {[%clk 0:03:01.8]}
7. Bb3 {[%clk 0:03:05.1]} 7... d6 {[%clk 0:03:03.3]} 8. a3 {[%clk 0:03:05.9]}
8... Na5 {[%clk 0:02:52.3]} 9. Ba2 {[%clk 0:03:06.2]} 9... c5 {[%clk 0:02:53.5]}
10. Nc3 {[%clk 0:03:01.5]} 10... Be6 {[%clk 0:02:54.1]} 11. Bxe6 {[%clk
0:02:56.6]} 11... fxe6 {[%clk 0:02:55.2]} 12. Bd2 {[%clk 0:02:56.6]} 12... Nc6
{[%clk 0:02:54.1]} 13. Ne2 {[%clk 0:02:56.9]} 13... O-O {[%clk 0:02:54.4]} 14.
Ng3 {[%clk 0:02:58]} 14... Qd7 {[%clk 0:02:55.4]} 15. b4 {[%clk 0:02:55.7]}
15... cxb4 {[%clk 0:02:25.9]} 16. axb4 {[%clk 0:02:55.8]} 16... d5 {[%clk
0:02:27.4]} 17. Qb1 {[%clk 0:02:47.5]} 17... dxe4 {[%clk 0:02:19.1]} 18. dxe4
{[%clk 0:02:48.2]} 18... Ne8 {[%clk 0:02:20.4]} 19. Rd1 {[%clk 0:02:38.9]} 19...
Nd6 {[%clk 0:02:21.6]} 20. Bc3 {[%clk 0:02:34]} 20... Qa7 {[%clk 0:02:22.4]} 21.
Rd3 {[%clk 0:02:07.9]} 21... Nc4 {[%clk 0:02:20.7]} 22. Qe1 {[%clk 0:02:08.9]}
22... Rad8 {[%clk 0:02:05.8]} 23. Rad1 {[%clk 0:02:03.9]} 23... Qb6 {[%clk
0:01:43.1]} 24. h3 {[%clk 0:02:01.4]} 24... h6 {[%clk 0:01:41]} 25. Nf1 {[%clk
0:01:27.5]} 25... Kh7 {[%clk 0:01:13.9]} 26. N1h2 {[%clk 0:01:22.8]} 26... Qc7
{[%clk 0:01:02.9]} 27. Ng4 {[%clk 0:01:21.2]} 27... Rfe8 {[%clk 0:01:00.9]} 28.
Ne3 {[%clk 0:00:59.1]} 28... Nxe3 {[%clk 0:00:58.2]} 29. fxe3 {[%clk 0:01:00]}
29... Bf6 {[%clk 0:00:23]} 30. Qd2 {[%clk 0:00:58.1]} 30... Rxd3 {[%clk
0:00:18.4]} 31. cxd3 {[%clk 0:00:58.9]} 31... Qb6 {[%clk 0:00:19.2]} 32. Kf2
{[%clk 0:00:55.4]} 32... Rd8 {[%clk 0:00:18.1]} 33. Qa2 {[%clk 0:00:53]} 33...
Be7 {[%clk 0:00:13.3]} 34. Qxe6 {[%clk 0:00:48.9]} 34... Rd6 {[%clk 0:00:14.5]}
35. Qb3 {[%clk 0:00:38.8]} 35... Qd8 {[%clk 0:00:09.2]} 36. Ke2 {[%clk
0:00:38.9]} 36... Bf6 {[%clk 0:00:09.2]} 37. g4 {[%clk 0:00:36.5]} 37... Qf8
{[%clk 0:00:04.9]} 38. h4 {[%clk 0:00:32.4]} 38... Be7 {[%clk 0:00:05.7]} 39. g5
{[%clk 0:00:30.8]} 39... Nd8 {[%clk 0:00:03]} 40. Nxe5 {[%clk 0:00:22]} 40...
Qe8 {[%clk 0:00:03.2]} 41. g6+ {[%clk 0:00:22.4]} 41... Kh8 {[%clk 0:00:03.3]}
42. Rf1 {[%clk 0:00:20.8]} 42... Bf6 {[%clk 0:00:03.4]} 43. Nf7+ {[%clk
0:00:16.9]} 43... Nxf7 {[%clk 0:00:04.6]} 44. Qxf7 {[%clk 0:00:15.7]} 1-0

[Event "*** Titled Tuesday Blitz"]
[Site "Chess.com"]
[Date "2018.12.04"]
[Round "3"]
[White "amintabatabaei"]
[Black "TigranLPetrosyan"]
[Result "1-0"]
[WhiteElo "2723"]
[BlackElo "2810"]
[TimeControl "180+2"]
[EndTime "13:38:09 PST"]
[Termination "amintabatabaei won on time"]

1. d4 {[%clk 0:03:01.9]} 1... g6 {[%clk 0:03:01.9]} 2. e4 {[%clk 0:03:01.5]}
2... Bg7 {[%clk 0:03:03.8]} 3. Nc3 {[%clk 0:03:03]} 3... d6 {[%clk 0:03:03]} 4.
Be3 {[%clk 0:03:04.2]} 4... a6 {[%clk 0:03:04.6]} 5. Qd2 {[%clk 0:03:05.1]} 5...
b5 {[%clk 0:03:06.2]} 6. h4 {[%clk 0:03:04.2]} 6... h6 {[%clk 0:03:06.3]} 7. f3
{[%clk 0:03:03.1]} 7... Nd7 {[%clk 0:03:01.7]} 8. Nh3 {[%clk 0:03:01.8]} 8... c5
{[%clk 0:03:01.7]} 9. O-O-O {[%clk 0:02:59.4]} 9... Bb7 {[%clk 0:02:47.8]} 10.
g4 {[%clk 0:02:59]} 10... b4 {[%clk 0:02:42.8]} 11. Ne2 {[%clk 0:02:45.7]} 11...
Qa5 {[%clk 0:02:39.7]} 12. Kb1 {[%clk 0:02:45.1]} 12... c4 {[%clk 0:02:37.8]}
13. c3 {[%clk 0:02:43.4]} 13... b3 {[%clk 0:02:20.7]} 14. axb3 {[%clk
0:02:13.6]} 14... cxb3 {[%clk 0:02:22.6]} 15. Nc1 {[%clk 0:02:15.3]} 15... Qa4
{[%clk 0:02:16.8]} 16. c4 {[%clk 0:02:12.1]} 16... Rb8 {[%clk 0:02:03.3]} 17.
Qc3 {[%clk 0:02:05.3]} 17... Ba8 {[%clk 0:02:04.3]} 18. Be2 {[%clk 0:01:59.4]}
18... Ngf6 {[%clk 0:02:04.4]} 19. g5 {[%clk 0:01:52.1]} 19... Nxe4 {[%clk
0:01:38.1]} 20. fxe4 {[%clk 0:01:52.5]} 20... Bxe4+ {[%clk 0:01:40]} 21. Bd3
{[%clk 0:01:53]} 21... Bxh1 {[%clk 0:01:36.6]} 22. Rxh1 {[%clk 0:01:46.7]} 22...
hxg5 {[%clk 0:01:35.3]} 23. Nxg5 {[%clk 0:01:46.8]} 23... Nc5 {[%clk 0:01:34.7]}
24. Be2 {[%clk 0:01:32]} 24... Qc6 {[%clk 0:01:01.9]} 25. Bf3 {[%clk 0:01:32.2]}
25... Qd7 {[%clk 0:01:01.5]} 26. Qa5 {[%clk 0:01:09]} 26... Qf5+ {[%clk
0:00:56.5]} 27. Ka1 {[%clk 0:01:09.8]} 27... O-O {[%clk 0:00:51.5]} 28. h5
{[%clk 0:00:55.6]} 28... Qc2 {[%clk 0:00:42]} 29. hxg6 {[%clk 0:00:46.9]} 29...
Qxc4 {[%clk 0:00:34.1]} 30. gxf7+ {[%clk 0:00:38.4]} 30... Rxf7 {[%clk
0:00:33.7]} 31. Nxf7 {[%clk 0:00:40.3]} 31... Rb4 {[%clk 0:00:33.1]} 32. Qd8+
{[%clk 0:00:29.4]} 32... Kxf7 {[%clk 0:00:31.5]} 33. Bh5+ {[%clk 0:00:30]} 33...
Kf6 {[%clk 0:00:26.5]} 34. Bg5+ {[%clk 0:00:26.7]} 34... Kf5 {[%clk 0:00:20.4]}
35. Bg6+ {[%clk 0:00:16.1]} 35... Kxg5 {[%clk 0:00:20.4]} 36. Qe8 {[%clk
0:00:17.1]} 36... Ra4+ {[%clk 0:00:20.7]} 37. Kb1 {[%clk 0:00:18.6]} 37... Ra1+
{[%clk 0:00:20.7]} 38. Kxa1 {[%clk 0:00:19.1]} 38... Nd3 {[%clk 0:00:22.2]} 39.
Bxd3 {[%clk 0:00:19.1]} 39... Qxd4 {[%clk 0:00:23.5]} 40. Rh2 {[%clk 0:00:19.4]}
40... Kf4 {[%clk 0:00:25.4]} 41. Qh5 {[%clk 0:00:17.1]} 41... Bf6 {[%clk
0:00:15.3]} 42. Rh4+ {[%clk 0:00:16.3]} 42... Bxh4 {[%clk 0:00:13.7]} 43. Qxh4+
{[%clk 0:00:18.2]} 43... Ke3 {[%clk 0:00:15.3]} 44. Qg3+ {[%clk 0:00:10.7]}
44... Kd2 {[%clk 0:00:14.7]} 45. Nxb3+ {[%clk 0:00:12.2]} 45... Kd1 {[%clk
0:00:14.8]} 46. Nxd4 {[%clk 0:00:14.1]} 1-0